{"text_format":"1","workbook":"xlsx","n_sheets":2,"sheets":["data","chart"],"not_rendered":{"charts":2,"images":0,"macros":1,"external_links":8,"defined_names":13,"comments":0,"pivot_tables":0},"unopened":[{"sheet":"chart","index":1,"reason":"not_a_worksheet"}],"bounds":{"document_bytes":16777216,"sheet_cells":100000,"rows_first":2000,"rows_last":500,"rows_between":2000,"halvings":0,"cell_chars":16384,"cell_head_chars":4096},"cells_cut":0,"cells_raw":0,"read":"whole","date_system":"1900"}

{"sheet":"data","index":0,"n_rows":101,"n_cols":11,"rows_kept":101,"cut":false,"hidden":false,"merged":[]}
["Uitvoerder","Titel","jaar",2006,2007,"stijgers","dalers","info","label","status-quo"]
["Queen","Bohemian rhapsody",1976,1,2,{"$f":"IF(AND(E2<D2,E2>0),E2,NA())","v":{"$error":"#N/A"}},{"$f":"IF(AND(E2>=D2,D2>0),E2,NA())","v":2},{"$f":"IF(E2=0,\"Uit de lijst\",IF(D2>E2,D2-E2&\" plaats\"&IF(D2-E2=1,\"\",\"en\")&\" vooruit gegaan\",IF(D2<E2,E2-D2&\" plaats\"&IF(E2-D2=1,\"\",\"en\")&\" achteruit gegaan\",\"status-quo\")))&\" in 2007\"","v":"1 plaats achteruit gegaan in 2007"},{"$f":"A2&\" - \"&B2&CHAR(10)&H2","v":"Queen - Bohemian rhapsody\n1 plaats achteruit gegaan in 2007"},1,1]
["Gorky","Mia",1992,2,3,{"$f":"IF(AND(E3<D3,E3>0),E3,NA())","v":{"$error":"#N/A"}},{"$f":"IF(AND(E3>=D3,D3>0),E3,NA())","v":3},{"$f":"IF(E3=0,\"Uit de lijst\",IF(D3>E3,D3-E3&\" plaats\"&IF(D3-E3=1,\"\",\"en\")&\" vooruit gegaan\",IF(D3<E3,E3-D3&\" plaats\"&IF(E3-D3=1,\"\",\"en\")&\" achteruit gegaan\",\"status-quo\")))&\" in 2007\"","v":"1 plaats achteruit gegaan in 2007"},"Gorky - Mia\n1 plaats achteruit gegaan in 2007",100,100]
["Bryan Adams","Summer of '69",1985,3,1,1,{"$error":"#N/A"},"2 plaatsen vooruit gegaan in 2007","Bryan Adams - Summer of '69\n2 plaatsen vooruit gegaan in 2007"]
["Deep Purple","Child in time",1972,4,6,{"$error":"#N/A"},6,"2 plaatsen achteruit gegaan in 2007","Deep Purple - Child in time\n2 plaatsen achteruit gegaan in 2007"]
["Clouseau","Afscheid van een vriend",1993,5,7,{"$error":"#N/A"},7,"2 plaatsen achteruit gegaan in 2007","Clouseau - Afscheid van een vriend\n2 plaatsen achteruit gegaan in 2007"]
["U2","With or without you",1987,6,5,5,{"$error":"#N/A"},"1 plaats vooruit gegaan in 2007","U2 - With or without you\n1 plaats vooruit gegaan in 2007"]
["Metallica","Nothing else matters",1999,7,4,4,{"$error":"#N/A"},"3 plaatsen vooruit gegaan in 2007","Metallica - Nothing else matters\n3 plaatsen vooruit gegaan in 2007"]
["Nirvana","Smells like teen spirit",1991,8,8,{"$error":"#N/A"},8,"status-quo in 2007","Nirvana - Smells like teen spirit\nstatus-quo in 2007"]
["Meat Loaf","Paradise by the dashboardlight",1979,9,10,{"$error":"#N/A"},10,"1 plaats achteruit gegaan in 2007","Meat Loaf - Paradise by the dashboardlight\n1 plaats achteruit gegaan in 2007"]
["U2","One",1991,10,41,{"$error":"#N/A"},41,"31 plaatsen achteruit gegaan in 2007","U2 - One\n31 plaatsen achteruit gegaan in 2007"]
["Guns 'N Roses","November rain",1992,11,11,{"$error":"#N/A"},11,"status-quo in 2007","Guns 'N Roses - November rain\nstatus-quo in 2007"]
["Robbie Williams","Angels",1998,12,14,{"$error":"#N/A"},14,"2 plaatsen achteruit gegaan in 2007","Robbie Williams - Angels\n2 plaatsen achteruit gegaan in 2007"]
["Goo Goo Dolls","Iris",1999,13,9,9,{"$error":"#N/A"},"4 plaatsen vooruit gegaan in 2007","Goo Goo Dolls - Iris\n4 plaatsen vooruit gegaan in 2007"]
["Led Zeppelin","Stairway to heaven",1971,14,12,12,{"$error":"#N/A"},"2 plaatsen vooruit gegaan in 2007","Led Zeppelin - Stairway to heaven\n2 plaatsen vooruit gegaan in 2007"]
["Coldplay","Clocks",2003,15,18,{"$error":"#N/A"},18,"3 plaatsen achteruit gegaan in 2007","Coldplay - Clocks\n3 plaatsen achteruit gegaan in 2007"]
["Bryan Adams","(Everything I do) I do it for you",1991,16,17,{"$error":"#N/A"},17,"1 plaats achteruit gegaan in 2007","Bryan Adams - (Everything I do) I do it for you\n1 plaats achteruit gegaan in 2007"]
["Eagles","Hotel California",1976,17,21,{"$error":"#N/A"},21,"4 plaatsen achteruit gegaan in 2007","Eagles - Hotel California\n4 plaatsen achteruit gegaan in 2007"]
["Bon Jovi","Always",1994,18,29,{"$error":"#N/A"},29,"11 plaatsen achteruit gegaan in 2007","Bon Jovi - Always\n11 plaatsen achteruit gegaan in 2007"]
["U2","Sunday bloody Sunday",1983,19,26,{"$error":"#N/A"},26,"7 plaatsen achteruit gegaan in 2007","U2 - Sunday bloody Sunday\n7 plaatsen achteruit gegaan in 2007"]
["Aerosmith","I don't want to miss a thing",1998,20,15,15,{"$error":"#N/A"},"5 plaatsen vooruit gegaan in 2007","Aerosmith - I don't want to miss a thing\n5 plaatsen vooruit gegaan in 2007"]
["Dire Straits","Sultans of swing",1979,21,20,20,{"$error":"#N/A"},"1 plaats vooruit gegaan in 2007","Dire Straits - Sultans of swing\n1 plaats vooruit gegaan in 2007"]
["Clouseau","Nobelprijs",1996,22,27,{"$error":"#N/A"},27,"5 plaatsen achteruit gegaan in 2007","Clouseau - Nobelprijs\n5 plaatsen achteruit gegaan in 2007"]
["U2","Beautiful day",2000,23,35,{"$error":"#N/A"},35,"12 plaatsen achteruit gegaan in 2007","U2 - Beautiful day\n12 plaatsen achteruit gegaan in 2007"]
["Anouk","Girl",2004,24,52,{"$error":"#N/A"},52,"28 plaatsen achteruit gegaan in 2007","Anouk - Girl\n28 plaatsen achteruit gegaan in 2007"]
["John Miles","Music",1976,25,23,23,{"$error":"#N/A"},"2 plaatsen vooruit gegaan in 2007","John Miles - Music\n2 plaatsen vooruit gegaan in 2007"]
["Prince","Purple rain",1984,26,25,25,{"$error":"#N/A"},"1 plaats vooruit gegaan in 2007","Prince - Purple rain\n1 plaats vooruit gegaan in 2007"]
["Clouseau","Domino",1991,27,19,19,{"$error":"#N/A"},"8 plaatsen vooruit gegaan in 2007","Clouseau - Domino\n8 plaatsen vooruit gegaan in 2007"]
["Radiohead","Creep",1993,28,34,{"$error":"#N/A"},34,"6 plaatsen achteruit gegaan in 2007","Radiohead - Creep\n6 plaatsen achteruit gegaan in 2007"]
["Anouk","Nobody's wife",1997,29,31,{"$error":"#N/A"},31,"2 plaatsen achteruit gegaan in 2007","Anouk - Nobody's wife\n2 plaatsen achteruit gegaan in 2007"]
["Bryan Adams","Heaven",1985,30,33,{"$error":"#N/A"},33,"3 plaatsen achteruit gegaan in 2007","Bryan Adams - Heaven\n3 plaatsen achteruit gegaan in 2007"]
["Snow Patrol","Chasing cars",2006,31,28,28,{"$error":"#N/A"},"3 plaatsen vooruit gegaan in 2007","Snow Patrol - Chasing cars\n3 plaatsen vooruit gegaan in 2007"]
["Bon Jovi","Bed of roses",1993,32,42,{"$error":"#N/A"},42,"10 plaatsen achteruit gegaan in 2007","Bon Jovi - Bed of roses\n10 plaatsen achteruit gegaan in 2007"]
["Anouk","Michel",2000,33,43,{"$error":"#N/A"},43,"10 plaatsen achteruit gegaan in 2007",{"$f":"A34&\" - \"&B34&CHAR(10)&H34","v":"Anouk - Michel\n10 plaatsen achteruit gegaan in 2007"}]
["Cure","A forest",1980,34,44,{"$error":"#N/A"},44,"10 plaatsen achteruit gegaan in 2007","Cure - A forest\n10 plaatsen achteruit gegaan in 2007"]
["Faithless","Insomnia",1996,35,51,{"$error":"#N/A"},51,"16 plaatsen achteruit gegaan in 2007","Faithless - Insomnia\n16 plaatsen achteruit gegaan in 2007"]
["A-Ha","Take on me",1985,36,40,{"$error":"#N/A"},40,"4 plaatsen achteruit gegaan in 2007","A-Ha - Take on me\n4 plaatsen achteruit gegaan in 2007"]
["Cranberries","Zombie",1994,37,38,{"$error":"#N/A"},38,"1 plaats achteruit gegaan in 2007","Cranberries - Zombie\n1 plaats achteruit gegaan in 2007"]
["AC/DC","Whole lotta Rosie",1978,38,57,{"$error":"#N/A"},57,"19 plaatsen achteruit gegaan in 2007","AC/DC - Whole lotta Rosie\n19 plaatsen achteruit gegaan in 2007"]
["Bob Sinclar","Love generation",2005,39,161,{"$error":"#N/A"},161,"122 plaatsen achteruit gegaan in 2007","Bob Sinclar - Love generation\n122 plaatsen achteruit gegaan in 2007"]
["Oasis","Wonderwall",1995,40,62,{"$error":"#N/A"},62,"22 plaatsen achteruit gegaan in 2007","Oasis - Wonderwall\n22 plaatsen achteruit gegaan in 2007"]
["R.E.M.","Losing my religion",1991,41,32,32,{"$error":"#N/A"},"9 plaatsen vooruit gegaan in 2007","R.E.M. - Losing my religion\n9 plaatsen vooruit gegaan in 2007"]
["Red Hot Chili Peppers","Under the bridge",1992,42,65,{"$error":"#N/A"},65,"23 plaatsen achteruit gegaan in 2007","Red Hot Chili Peppers - Under the bridge\n23 plaatsen achteruit gegaan in 2007"]
["Simple Minds","Belfast child",1989,43,49,{"$error":"#N/A"},49,"6 plaatsen achteruit gegaan in 2007","Simple Minds - Belfast child\n6 plaatsen achteruit gegaan in 2007"]
["The Kooks","Naive",2006,44,139,{"$error":"#N/A"},139,"95 plaatsen achteruit gegaan in 2007","The Kooks - Naive\n95 plaatsen achteruit gegaan in 2007"]
["AC/DC","Thunderstruck",1990,45,36,36,{"$error":"#N/A"},"9 plaatsen vooruit gegaan in 2007","AC/DC - Thunderstruck\n9 plaatsen vooruit gegaan in 2007"]
["Rolling Stones","Angie",1973,46,45,45,{"$error":"#N/A"},"1 plaats vooruit gegaan in 2007","Rolling Stones - Angie\n1 plaats vooruit gegaan in 2007"]
["Alice Cooper","Poison",1989,47,54,{"$error":"#N/A"},54,"7 plaatsen achteruit gegaan in 2007","Alice Cooper - Poison\n7 plaatsen achteruit gegaan in 2007"]
["John Lennon","Imagine",1971,48,59,{"$error":"#N/A"},59,"11 plaatsen achteruit gegaan in 2007","John Lennon - Imagine\n11 plaatsen achteruit gegaan in 2007"]
["3 Doors Down","Here without you",2004,49,60,{"$error":"#N/A"},60,"11 plaatsen achteruit gegaan in 2007","3 Doors Down - Here without you\n11 plaatsen achteruit gegaan in 2007"]
["Europe","The final countdown",1986,50,75,{"$error":"#N/A"},75,"25 plaatsen achteruit gegaan in 2007","Europe - The final countdown\n25 plaatsen achteruit gegaan in 2007"]
["Barry White","The first, the last, my everything",1975,51,48,48,{"$error":"#N/A"},"3 plaatsen vooruit gegaan in 2007","Barry White - The first, the last, my everything\n3 plaatsen vooruit gegaan in 2007"]
["2Pac","Changes",1999,52,58,{"$error":"#N/A"},58,"6 plaatsen achteruit gegaan in 2007","2Pac - Changes\n6 plaatsen achteruit gegaan in 2007"]
["2 Belgen","Lena",1985,53,66,{"$error":"#N/A"},66,"13 plaatsen achteruit gegaan in 2007","2 Belgen - Lena\n13 plaatsen achteruit gegaan in 2007"]
["Clouseau","Ik denk aan jou",2004,54,136,{"$error":"#N/A"},136,"82 plaatsen achteruit gegaan in 2007","Clouseau - Ik denk aan jou\n82 plaatsen achteruit gegaan in 2007"]
["Bruce Springsteen","The river",1981,55,37,37,{"$error":"#N/A"},"18 plaatsen vooruit gegaan in 2007","Bruce Springsteen - The river\n18 plaatsen vooruit gegaan in 2007"]
["Bon Jovi","Livin' on a prayer",1987,56,103,{"$error":"#N/A"},103,"47 plaatsen achteruit gegaan in 2007","Bon Jovi - Livin' on a prayer\n47 plaatsen achteruit gegaan in 2007"]
["Michael Jackson","Billie Jean",1983,57,63,{"$error":"#N/A"},63,"6 plaatsen achteruit gegaan in 2007","Michael Jackson - Billie Jean\n6 plaatsen achteruit gegaan in 2007"]
["U2","Vertigo",2004,58,82,{"$error":"#N/A"},82,"24 plaatsen achteruit gegaan in 2007","U2 - Vertigo\n24 plaatsen achteruit gegaan in 2007"]
["Golden Earring","When the lady smiles",1984,59,55,55,{"$error":"#N/A"},"4 plaatsen vooruit gegaan in 2007","Golden Earring - When the lady smiles\n4 plaatsen vooruit gegaan in 2007"]
["Coldplay","The scientist",2002,60,77,{"$error":"#N/A"},77,"17 plaatsen achteruit gegaan in 2007","Coldplay - The scientist\n17 plaatsen achteruit gegaan in 2007"]
["Bonnie Tyler","Total eclipse of the heart",1982,61,78,{"$error":"#N/A"},78,"17 plaatsen achteruit gegaan in 2007","Bonnie Tyler - Total eclipse of the heart\n17 plaatsen achteruit gegaan in 2007"]
["Marco Borsato","Afscheid nemen bestaat niet",2003,62,167,{"$error":"#N/A"},167,"105 plaatsen achteruit gegaan in 2007","Marco Borsato - Afscheid nemen bestaat niet\n105 plaatsen achteruit gegaan in 2007"]
["Falco","Jeanny",1986,63,64,{"$error":"#N/A"},64,"1 plaats achteruit gegaan in 2007","Falco - Jeanny\n1 plaats achteruit gegaan in 2007"]
["Clouseau","En dans",2001,64,50,50,{"$error":"#N/A"},"14 plaatsen vooruit gegaan in 2007","Clouseau - En dans\n14 plaatsen vooruit gegaan in 2007"]
["ABBA","Dancing queen",1976,65,68,{"$error":"#N/A"},68,"3 plaatsen achteruit gegaan in 2007",{"$f":"A66&\" - \"&B66&CHAR(10)&H66","v":"ABBA - Dancing queen\n3 plaatsen achteruit gegaan in 2007"}]
["Queen","I want to break free",1984,66,84,{"$f":"IF(AND(E67<D67,E67>0),E67,NA())","v":{"$error":"#N/A"}},{"$f":"IF(AND(E67>=D67,D67>0),E67,NA())","v":84},{"$f":"IF(E67=0,\"Uit de lijst\",IF(D67>E67,D67-E67&\" plaats\"&IF(D67-E67=1,\"\",\"en\")&\" vooruit gegaan\",IF(D67<E67,E67-D67&\" plaats\"&IF(E67-D67=1,\"\",\"en\")&\" achteruit gegaan\",\"status-quo\")))&\" in 2007\"","v":"18 plaatsen achteruit gegaan in 2007"},"Queen - I want to break free\n18 plaatsen achteruit gegaan in 2007"]
["Rolling Stones","Paint it black",1966,67,70,{"$error":"#N/A"},70,"3 plaatsen achteruit gegaan in 2007","Rolling Stones - Paint it black\n3 plaatsen achteruit gegaan in 2007"]
["Faithless","God is a DJ",1998,68,39,39,{"$error":"#N/A"},"29 plaatsen vooruit gegaan in 2007","Faithless - God is a DJ\n29 plaatsen vooruit gegaan in 2007"]
["10 CC","Dreadlock holiday",1979,69,76,{"$error":"#N/A"},76,"7 plaatsen achteruit gegaan in 2007","10 CC - Dreadlock holiday\n7 plaatsen achteruit gegaan in 2007"]
["Anouk","Lost",2005,70,98,{"$error":"#N/A"},98,"28 plaatsen achteruit gegaan in 2007","Anouk - Lost\n28 plaatsen achteruit gegaan in 2007"]
["Dire Straits","Brothers in arms",1985,71,71,{"$error":"#N/A"},71,"status-quo in 2007","Dire Straits - Brothers in arms\nstatus-quo in 2007"]
["Pink Floyd","Another brick in the wall - part 2",1980,72,99,{"$error":"#N/A"},99,"27 plaatsen achteruit gegaan in 2007","Pink Floyd - Another brick in the wall - part 2\n27 plaatsen achteruit gegaan in 2007"]
["Red Hot Chili Peppers","Californication",2000,73,106,{"$error":"#N/A"},106,"33 plaatsen achteruit gegaan in 2007","Red Hot Chili Peppers - Californication\n33 plaatsen achteruit gegaan in 2007"]
["Clouseau","Daar gaat ze",1982,74,108,{"$error":"#N/A"},108,"34 plaatsen achteruit gegaan in 2007","Clouseau - Daar gaat ze\n34 plaatsen achteruit gegaan in 2007"]
["U2","New year's day",1983,75,119,{"$error":"#N/A"},119,"44 plaatsen achteruit gegaan in 2007","U2 - New year's day\n44 plaatsen achteruit gegaan in 2007"]
["Natalia","I want you back",1989,76,69,69,{"$error":"#N/A"},"7 plaatsen vooruit gegaan in 2007","Natalia - I want you back\n7 plaatsen vooruit gegaan in 2007"]
["Deep Purple","Smoke on the water",1973,77,90,{"$error":"#N/A"},90,"13 plaatsen achteruit gegaan in 2007","Deep Purple - Smoke on the water\n13 plaatsen achteruit gegaan in 2007"]
["Bruce Springsteen","Dancing in the dark",1985,78,87,{"$error":"#N/A"},87,"9 plaatsen achteruit gegaan in 2007","Bruce Springsteen - Dancing in the dark\n9 plaatsen achteruit gegaan in 2007"]
["Bon Jovi","It's my life",2000,79,183,{"$error":"#N/A"},183,"104 plaatsen achteruit gegaan in 2007","Bon Jovi - It's my life\n104 plaatsen achteruit gegaan in 2007"]
["Simple Minds","Don't you (forget about me)",1985,80,53,53,{"$error":"#N/A"},"27 plaatsen vooruit gegaan in 2007","Simple Minds - Don't you (forget about me)\n27 plaatsen vooruit gegaan in 2007"]
["Alanis Morissette","Ironic",1996,81,86,{"$error":"#N/A"},86,"5 plaatsen achteruit gegaan in 2007","Alanis Morissette - Ironic\n5 plaatsen achteruit gegaan in 2007"]
["James Blunt","You're beautiful",2005,82,196,{"$error":"#N/A"},196,"114 plaatsen achteruit gegaan in 2007","James Blunt - You're beautiful\n114 plaatsen achteruit gegaan in 2007"]
["Black Sabbath","Paranoid",1970,83,117,{"$error":"#N/A"},117,"34 plaatsen achteruit gegaan in 2007","Black Sabbath - Paranoid\n34 plaatsen achteruit gegaan in 2007"]
["Liquido","Narcotic",1999,84,74,74,{"$error":"#N/A"},"10 plaatsen vooruit gegaan in 2007","Liquido - Narcotic\n10 plaatsen vooruit gegaan in 2007"]
["Hooverphonic","Mad about you",2000,85,146,{"$error":"#N/A"},146,"61 plaatsen achteruit gegaan in 2007","Hooverphonic - Mad about you\n61 plaatsen achteruit gegaan in 2007"]
["Alphaville","Forever young",1984,86,94,{"$error":"#N/A"},94,"8 plaatsen achteruit gegaan in 2007","Alphaville - Forever young\n8 plaatsen achteruit gegaan in 2007"]
["Red Hot Chili Peppers","Dani California",2005,87,247,{"$error":"#N/A"},247,"160 plaatsen achteruit gegaan in 2007","Red Hot Chili Peppers - Dani California\n160 plaatsen achteruit gegaan in 2007"]
["Clouseau","Altijd heb ik je lief",1992,88,72,72,{"$error":"#N/A"},"16 plaatsen vooruit gegaan in 2007","Clouseau - Altijd heb ik je lief\n16 plaatsen vooruit gegaan in 2007"]
["Keane","Somewhere only we know",2004,89,172,{"$error":"#N/A"},172,"83 plaatsen achteruit gegaan in 2007","Keane - Somewhere only we know\n83 plaatsen achteruit gegaan in 2007"]
["R.E.M.","Everybody hurts",1993,90,67,67,{"$error":"#N/A"},"23 plaatsen vooruit gegaan in 2007","R.E.M. - Everybody hurts\n23 plaatsen vooruit gegaan in 2007"]
["Robbie Williams","Feel",2002,91,79,79,{"$error":"#N/A"},"12 plaatsen vooruit gegaan in 2007","Robbie Williams - Feel\n12 plaatsen vooruit gegaan in 2007"]
["Radiohead","Street spirit (fade out)",1996,92,169,{"$error":"#N/A"},169,"77 plaatsen achteruit gegaan in 2007","Radiohead - Street spirit (fade out)\n77 plaatsen achteruit gegaan in 2007"]
["U2","Pride (in the name of love)",1984,93,91,91,{"$error":"#N/A"},"2 plaatsen vooruit gegaan in 2007","U2 - Pride (in the name of love)\n2 plaatsen vooruit gegaan in 2007"]
["Nirvana","Come as you are",1992,94,165,{"$error":"#N/A"},165,"71 plaatsen achteruit gegaan in 2007","Nirvana - Come as you are\n71 plaatsen achteruit gegaan in 2007"]
["Madonna","Like a prayer",1982,95,89,89,{"$error":"#N/A"},"6 plaatsen vooruit gegaan in 2007","Madonna - Like a prayer\n6 plaatsen vooruit gegaan in 2007"]
["Coldplay","The hardest part",1965,96,198,{"$error":"#N/A"},198,"102 plaatsen achteruit gegaan in 2007","Coldplay - The hardest part\n102 plaatsen achteruit gegaan in 2007"]
["Beatles","Hey Jude",1968,97,105,{"$error":"#N/A"},105,"8 plaatsen achteruit gegaan in 2007",{"$f":"A98&\" - \"&B98&CHAR(10)&H98","v":"Beatles - Hey Jude\n8 plaatsen achteruit gegaan in 2007"}]
["Frank Boeijen Groep","Kronenburg park",2001,98,134,{"$error":"#N/A"},134,"36 plaatsen achteruit gegaan in 2007",{"$f":"A99&\" - \"&B99&CHAR(10)&H99","v":"Frank Boeijen Groep - Kronenburg park\n36 plaatsen achteruit gegaan in 2007"}]
["Shakira feat. Wyclef Jean","Hips don't lie",2006,99,261,{"$error":"#N/A"},261,"162 plaatsen achteruit gegaan in 2007",{"$f":"A100&\" - \"&B100&CHAR(10)&H100","v":"Shakira feat. Wyclef Jean - Hips don't lie\n162 plaatsen achteruit gegaan in 2007"}]
["Depeche Mode","Enjoy the silence",1990,100,122,{"$error":"#N/A"},122,"22 plaatsen achteruit gegaan in 2007",{"$f":"A101&\" - \"&B101&CHAR(10)&H101","v":"Depeche Mode - Enjoy the silence\n22 plaatsen achteruit gegaan in 2007"}]